bitfinex/quotes_BTCUSD_20220205
["timestamp","ask_amount","ask_price","bid_price","bid_amount"]
[1644054369643,0.31284787,41515.0,41514.0,0.060213]
[1644054370646,0.37767989,41515.0,41514.0,0.060213]
[1644054370847,0.37767989,41515.0,41512.0,0.00100929]
[1644054371048,0.37767989,41515.0,41512.0,0.00081035]
[1644054371693,0.37767989,41515.0,41509.0,0.00019894]
[1644054371893,0.37767989,41515.0,41511.0,0.00081036]
[1644054372093,0.3422446,41515.0,41511.0,0.00081036]
[1644054372298,0.03543529,41512.0,41511.0,0.00081036]
[1644054372493,0.32310436,41512.0,41511.0,0.00081036]
[1644054372898,0.32310436,41512.0,41508.0,0.00019894]
[1644054373095,0.29079393,41512.0,41509.0,0.00081038]
[1644054373296,0.28766907,41512.0,41509.0,0.00081038]
[1644054374098,0.00312486,41510.0,41508.0,0.00019894]
[1644054374296,0.00312486,41510.0,41509.0,0.332239]
[1644054375143,0.00312486,41510.0,41508.0,0.00100933]
[1644054375346,0.00312486,41510.0,41509.0,0.332239]
[1644054375548,0.00312486,41510.0,41507.0,0.00081041]
[1644054375743,0.00312486,41510.0,41507.0,0.00100935]
[1644054375942,0.00312486,41510.0,41508.0,0.332239]
[1644054376545,0.00312486,41510.0,41508.0,0.33213164]
[1644054376744,0.00312486,41510.0,41507.0,0.06123235]
[1644054377744,0.00312486,41510.0,41507.0,0.060223]
[1644054377946,0.00312486,41510.0,41507.0,0.00019894]
[1644054378157,0.00312486,41510.0,41506.0,0.00100936]
[1644054378350,0.10142486,41509.0,41506.0,0.00081042]
[1644054378549,0.10142486,41509.0,41498.0,0.05]
[1644054378550,0.75,41506.0,41498.0,0.05]
[1644054378798,0.32449148,41504.0,41502.0,0.01946498]
[1644054378997,0.75,41502.0,41498.0,0.05]
[1644054379195,0.75,41502.0,41497.0,0.02127195]
[1644054379196,0.332225,41498.0,41497.0,0.02127195]
[1644054379394,0.680525,41498.0,41497.0,0.02127195]
[1644054379601,0.89078104,41498.0,41497.0,0.02127195]
[1644054379995,0.59078104,41498.0,41497.0,0.02127195]
[1644054380195,0.81017393,41498.0,41497.0,0.02127195]
[1644054380395,1.11017393,41498.0,41497.0,0.02127195]
[1644054380595,0.81017393,41498.0,41497.0,0.02127195]
[1644054380799,1.17042693,41498.0,41497.0,0.02127195]
[1644054382297,1.11017393,41498.0,41497.0,0.02127195]
[1644054382947,0.0483,41498.0,41497.0,0.02127195]
[1644054384245,0.380525,41498.0,41497.0,0.02127195]
[1644054384645,0.332225,41498.0,41497.0,0.02127195]
[1644054385046,0.332225,41498.0,41495.0,0.00049525]
[1644054385246,0.08228708,41497.0,41495.0,0.00049525]
[1644054385449,0.00312486,41496.0,41495.0,0.00049525]
[1644054385649,0.00312486,41496.0,41495.0,0.33272025]
[1644054386051,0.00312486,41496.0,41495.0,0.332225]
[1644054387495,0.00312486,41496.0,41492.0,0.0726559]
[1644054387793,0.00312486,41493.0,41492.0,0.0726559]
[1644054387993,0.00312486,41493.0,41492.0,0.4048809]
[1644054388393,0.00312486,41493.0,41492.0,0.332225]
[1644054390047,0.00312486,41493.0,41491.0,0.04978]
[1644054390449,0.00312486,41493.0,41491.0,0.126551]
[1644054391049,0.00312486,41493.0,41491.0,0.04978]
[1644054393249,0.22557634,41497.0,41491.0,0.04978]
[1644054393448,0.22557634,41497.0,41489.0,0.002]
[1644054394794,0.22557634,41497.0,41491.0,0.00080474]
[1644054395394,0.22557634,41497.0,41492.0,0.04999999]
[1644054395594,0.06394091,41498.0,41492.0,0.00019722]
[1644054395794,0.06394091,41498.0,41492.0,0.00080472]
[1644054396096,0.07036132,41498.0,41492.0,0.00080472]
[1644054396897,0.07036132,41498.0,41490.0,0.00019722]
[1644054397096,0.07036132,41498.0,41493.0,0.00080471]
[1644054397297,0.26157727,41497.0,41493.0,0.00080471]
[1644054398145,0.26157727,41497.0,41490.0,0.00019722]
[1644054398346,0.26157727,41497.0,41493.0,0.00080471]
[1644054398548,0.332225,41496.0,41493.0,0.00080471]
[1644054399152,0.332225,41496.0,41490.0,0.00019722]
[1644054399348,0.07107918,41491.0,41489.0,0.00219722]
[1644054399547,0.07107918,41491.0,41490.0,0.332225]
[1644054399948,0.07107918,41491.0,41490.0,0.33242222]
[1644054400551,0.07107918,41491.0,41490.0,0.00019722]
[1644054400748,0.07107918,41491.0,41489.0,0.002]
[1644054400949,0.28046334,41491.0,41489.0,0.00219722]
[1644054401700,0.07107918,41491.0,41489.0,0.05219721]
[1644054401897,0.07107918,41491.0,41490.0,0.332225]
[1644054402098,0.29636404,41497.0,41490.0,0.33242222]
[1644054402295,0.12122041,41498.0,41490.0,0.00019722]
[1644054402496,0.25850376,41497.0,41489.0,0.00219722]
[1644054402695,0.20644539,41495.0,41489.0,0.00219722]
[1644054403096,0.20644539,41495.0,41491.0,0.00080474]
[1644054403296,0.26532705,41497.0,41491.0,0.00080474]
[1644054403696,0.26532705,41497.0,41491.0,0.05080473]
[1644054403895,0.12122041,41498.0,41491.0,0.05080473]
[1644054404096,0.00642041,41498.0,41491.0,0.04999999]
[1644054404300,0.00642041,41498.0,41492.0,0.00080472]
[1644054404301,0.21581869,41498.0,41492.0,0.00080472]
[1644054404497,0.32474801,41497.0,41493.0,0.07086711]
[1644054404699,0.06685152,41497.0,41496.0,0.26358824]
[1644054405143,0.06685152,41497.0,41493.0,0.00019722]
[1644054405342,0.06685152,41497.0,41492.0,0.05019721]
[1644054405543,0.06685152,41497.0,41494.0,0.23816888]
[1644054405742,0.06685152,41497.0,41494.0,0.00080469]
[1644054405943,0.06685152,41497.0,41495.0,0.26292226]
[1644054406141,0.06685152,41497.0,41495.0,0.26311948]
[1644054406742,0.06685152,41497.0,41495.0,0.47908368]
[1644054407141,0.06685152,41497.0,41495.0,0.26311948]
[1644054407743,0.06685152,41497.0,41495.0,0.00019722]
[1644054407944,0.06685152,41497.0,41494.0,0.0007547]
[1644054408797,0.06685152,41497.0,41492.0,0.21033125]
[1644054408994,0.06685152,41497.0,41493.0,0.0007547]
[1644054409393,0.06685152,41497.0,41493.0,0.00095192]
[1644054409993,0.06685152,41497.0,41493.0,0.00019722]
[1644054410194,0.06685152,41497.0,41493.0,0.00075471]
[1644054410395,0.06685152,41497.0,41493.0,0.00095193]
[1644054411294,0.06685152,41497.0,41493.0,0.00019722]
[1644054411493,0.06685152,41497.0,41493.0,0.00075808]
[1644054411692,0.06685152,41497.0,41493.0,0.05095529]
[1644054412098,0.06685152,41497.0,41493.0,0.0009553]
[1644054412547,0.06685152,41497.0,41493.0,0.00019722]
[1644054412746,0.06685152,41497.0,41493.0,0.00075808]
[1644054412947,0.06685152,41497.0,41493.0,0.0009553]
[1644054413347,0.00930523,41497.0,41493.0,0.0009553]
[1644054413650,0.00930523,41497.0,41493.0,0.00019722]
[1644054413846,0.00930523,41497.0,41493.0,0.00075808]
[1644054414047,0.00930523,41497.0,41493.0,0.0009553]
[1644054414847,0.00930523,41497.0,41493.0,0.00019722]
[1644054415047,0.00930523,41497.0,41493.0,0.00044606]
[1644054415248,0.00930523,41497.0,41493.0,0.00064328]
[1644054416048,0.00930523,41497.0,41493.0,0.00019722]
[1644054416296,0.00930523,41497.0,41493.0,0.00044606]
[1644054416496,0.00930523,41497.0,41493.0,0.00064328]
[1644054417301,0.00930523,41497.0,41493.0,0.00019722]
[1644054417497,0.00930523,41497.0,41493.0,0.00075748]
[1644054417698,0.00930523,41497.0,41493.0,0.0009547]
[1644054418499,0.00930523,41497.0,41493.0,0.30898306]
[1644054418700,0.00930523,41497.0,41493.0,0.30955385]
[1644054419700,0.00930523,41497.0,41493.0,0.30878584]
[1644054420048,0.00930523,41497.0,41493.0,0.30955385]
[1644054420446,0.00930523,41497.0,41494.0,0.30878584]
[1644054420647,0.00930523,41497.0,41494.0,0.30898306]
[1644054421047,0.00930523,41497.0,41494.0,0.30878584]
[1644054421247,0.00930523,41497.0,41494.0,0.30898306]
[1644054421548,0.00930523,41497.0,41495.0,0.30878584]
[1644054421747,0.00930523,41497.0,41495.0,0.30898306]
[1644054421948,0.00930523,41497.0,41495.0,0.30878584]
[1644054422449,0.00930523,41497.0,41496.0,0.30878584]
[1644054422651,0.00930523,41497.0,41496.0,0.30898306]
[1644054422847,0.00930523,41497.0,41496.0,0.30878584]
[1644054423448,0.35115712,41497.0,41495.0,0.00019722]
[1644054423648,0.27746949,41496.0,41495.0,0.30878584]
[1644054423895,0.27746949,41496.0,41495.0,0.00019722]
[1644054424195,0.27746949,41496.0,41494.0,0.30954352]
[1644054424396,0.32746949,41496.0,41494.0,0.30878584]
[1644054424594,0.26986927,41495.0,41494.0,0.30878584]
[1644054424793,0.26986927,41495.0,41494.0,0.30898306]
[1644054425794,0.00930523,41497.0,41494.0,0.30378584]
[1644054425995,0.00930523,41497.0,41494.0,0.36078286]
[1644054426799,0.00930523,41497.0,41494.0,0.00019722]
[1644054426996,0.00930523,41497.0,41493.0,0.36103282]
[1644054427196,0.2786632,41497.0,41493.0,0.36123004]
[1644054427398,0.2786632,41497.0,41493.0,0.36103282]
[1644054427853,0.2786632,41497.0,41493.0,0.00044718]
[1644054428051,0.2786632,41497.0,41493.0,0.10200927]
[1644054428248,0.2786632,41497.0,41493.0,0.00064441]
[1644054429252,0.43891041,41497.0,41493.0,0.00019722]
[1644054429453,0.43891041,41497.0,41493.0,0.00046272]
[1644054429651,0.53891041,41497.0,41493.0,0.00065994]
[1644054429852,0.332225,41496.0,41493.0,0.00065994]
[1644054430050,0.332225,41495.0,41493.0,0.00065994]
[1644054430251,0.25964373,41494.0,41493.0,0.00065994]
[1644054430457,0.59186873,41494.0,41493.0,0.00019722]
[1644054430654,0.59186873,41494.0,41492.0,0.36135948]
[1644054430852,0.25964373,41494.0,41492.0,0.00077384]
[1644054431309,0.25964373,41494.0,41492.0,0.00097106]
[1644054431501,0.332225,41493.0,41492.0,0.00097106]
[1644054431701,0.332225,41493.0,41492.0,0.00019722]
[1644054431900,0.332225,41493.0,41491.0,0.36135949]
[1644054431901,0.06025187,41493.0,41491.0,0.36135949]
[1644054432101,0.06025187,41493.0,41491.0,0.36155671]
[1644054432300,0.06025187,41493.0,41491.0,0.36135949]
[1644054432901,0.21758117,41492.0,41491.0,0.36058564]
[1644054433303,0.10840788,41492.0,41491.0,0.00019722]
[1644054433501,0.06025187,41493.0,41490.0,0.36153895]
[1644054433901,0.06025187,41493.0,41492.0,0.30909341]
[1644054434102,0.33469583,41493.0,41492.0,0.30909341]
[1644054434301,0.33469583,41493.0,41491.0,0.00019722]
[1644054434502,0.26331544,41492.0,41490.0,0.36078286]
[1644054434702,0.06025187,41493.0,41490.0,0.36078286]
[1644054434904,0.27141445,41492.0,41491.0,0.30911042]
[1644054435149,0.27141445,41492.0,41491.0,0.30930764]
[1644054435356,0.7,41490.0,41489.0,0.07589076]
[1644054435552,1.380525,41490.0,41489.0,0.07747341]
[1644054435753,1.480525,41490.0,41489.0,0.0007561]
[1644054435949,1.230525,41490.0,41489.0,0.0007561]
[1644054436249,1.30330748,41490.0,41489.0,0.0007561]
[1644054436450,0.060267,41488.0,41485.0,0.003]
[1644054436650,0.21459293,41486.0,41485.0,0.003]
[1644054436850,0.59511793,41486.0,41485.0,0.003]
[1644054437052,0.75,41485.0,41467.0,0.17084306]
[1644054437257,0.75,41485.0,41465.0,0.003]
[1644054437258,0.04999999,41472.0,41465.0,0.003]
[1644054437454,0.04999999,41466.0,41465.0,0.91555423]
[1644054437652,0.04999999,41466.0,41465.0,0.41555423]
[1644054437852,0.04999999,41466.0,41465.0,0.003]
[1644054438053,0.43052499,41466.0,41465.0,0.003]
[1644054438255,0.88052499,41466.0,41465.0,0.003]
[1644054438453,0.88052499,41466.0,41464.0,0.003]
[1644054438658,0.88052499,41466.0,41455.0,0.03]
[1644054438659,0.75,41462.0,41455.0,0.03]
[1644054438911,0.04999999,41456.0,41449.0,0.05]
[1644054439109,0.04899999,41452.0,41445.0,0.11191541]
[1644054439310,0.42952499,41452.0,41445.0,0.12801266]
[1644054439508,0.67100027,41452.0,41445.0,0.11191541]
[1644054439708,0.82100027,41452.0,41445.0,0.22032617]
[1644054439909,0.82100027,41452.0,41445.0,0.11191541]
[1644054440109,0.82100027,41452.0,41446.0,0.08437039]
[1644054440310,0.82100027,41452.0,41449.0,0.00080407]
[1644054440917,0.87996143,41452.0,41449.0,0.00080407]
[1644054441113,0.0483,41452.0,41451.0,0.021]
[1644054441317,0.6671,41463.0,41451.0,0.021]
[1644054441513,0.04899999,41464.0,41456.0,0.001]
[1644054441712,0.365,41465.0,41456.0,0.001]
[1644054441914,0.26281401,41460.0,41456.0,0.001]
[1644054442313,0.332225,41459.0,41452.0,0.07125523]
[1644054442550,0.26281401,41460.0,41454.0,0.001]
[1644054442751,0.26281401,41460.0,41456.0,0.00080399]
[1644054442956,0.04899999,41460.0,41456.0,0.00080399]
[1644054443150,0.02022846,41461.0,41456.0,0.00080399]
[1644054443352,0.02022846,41461.0,41459.0,0.001]
[1644054443555,0.02022846,41461.0,41456.0,0.00080399]
[1644054443751,0.02022846,41461.0,41458.0,0.001]
[1644054444051,0.02022846,41461.0,41458.0,0.14571422]
[1644054444251,0.02022846,41461.0,41459.0,0.28735294]
[1644054444651,0.02022846,41461.0,41460.0,0.332225]
[1644054445051,0.00642534,41465.0,41458.0,0.001]
[1644054445052,0.04899999,41463.0,41458.0,0.00180396]
[1644054445251,0.00642534,41465.0,41458.0,0.00180396]
[1644054445452,0.04899999,41463.0,41458.0,0.00180396]
[1644054445654,0.00642534,41465.0,41458.0,0.00180396]
[1644054445958,0.01945464,41466.0,41464.0,0.001]
[1644054447205,0.06619369,41468.0,41464.0,0.001]
[1644054447405,0.01822403,41470.0,41464.0,0.001]
[1644054448912,0.03969209,41470.0,41465.0,0.00078863]
[1644054449109,0.02146806,41470.0,41465.0,0.00078863]
[1644054449308,0.02146806,41470.0,41466.0,0.001]
[1644054449708,0.02146806,41470.0,41466.0,0.00976646]
[1644054449909,0.02146806,41470.0,41466.0,0.01055508]
[1644054450753,0.332225,41469.0,41466.0,0.01055508]
[1644054450955,0.332225,41469.0,41466.0,0.00976646]
[1644054451152,0.02146806,41470.0,41466.0,0.01055508]
[1644054451353,0.332225,41470.0,41469.0,0.001]
[1644054451752,0.332225,41470.0,41467.0,0.00019667]
[1644054451953,0.332225,41470.0,41469.0,0.001]
[1644054452156,0.332225,41470.0,41467.0,0.00019667]
[1644054452355,0.04899999,41469.0,41466.0,0.01052135]
[1644054452658,0.332225,41468.0,41466.0,0.01052135]
[1644054452956,0.332225,41468.0,41466.0,0.00952135]
[1644054452957,0.30191827,41467.0,41466.0,0.00952135]
[1644054453155,0.88023348,41467.0,41466.0,0.00952135]
[1644054453356,1.06179121,41467.0,41466.0,0.00876646]
[1644054462109,1.06169677,41467.0,41466.0,0.00876646]
[1644054464106,0.75,41466.0,41457.0,0.03296314]
[1644054464307,0.332225,41465.0,41464.0,0.00075822]
[1644054464506,0.59537047,41465.0,41464.0,0.00075822]
[1644054464905,0.59537047,41465.0,41458.0,0.00303333]
[1644054464906,0.59537047,41465.0,41456.0,0.2414803]
[1644054465152,0.55,41464.0,41456.0,0.2414803]
[1644054465352,0.59537047,41465.0,41456.0,0.2414803]
[1644054465353,0.04999999,41463.0,41456.0,0.2414803]
[1644054465853,0.08211355,41461.0,41456.0,0.2414803]
[1644054466854,0.08211355,41461.0,41456.0,0.00044759]
[1644054467056,0.64907546,41460.0,41456.0,0.00044759]
[1644054467657,0.04999999,41457.0,41456.0,0.00044759]
[1644054467858,0.23373779,41456.0,41450.0,0.22718202]
[1644054468060,0.00874407,41452.0,41450.0,0.0011]
[1644054468258,0.39096906,41452.0,41450.0,0.0011]
[1644054468458,0.69096906,41452.0,41450.0,0.0011]
[1644054468656,0.39096906,41452.0,41450.0,0.0011]
[1644054469106,0.38222499,41452.0,41450.0,0.0011]
[1644054470503,0.68648951,41452.0,41450.0,0.0011]
[1644054476904,0.38222499,41452.0,41450.0,0.0011]
[1644054478105,0.65252728,41452.0,41451.0,0.01988605]
[1644054479307,0.7901283,41452.0,41451.0,0.01988605]
[1644054479908,0.51982601,41452.0,41451.0,0.01988605]
[1644054481054,0.45950835,41452.0,41451.0,0.01988605]
[1644054482054,0.73921371,41452.0,41451.0,0.01988605]
[1644054482257,0.7429233,41452.0,41451.0,0.01988605]
[1644054482655,0.75,41451.0,41449.0,0.00080353]
[1644054482855,0.65516177,41450.0,41449.0,0.00080353]
[1644054483455,0.65516177,41450.0,41444.0,0.0001952]
[1644054483456,0.12065094,41449.0,41444.0,0.0001952]
[1644054483657,0.332225,41448.0,41447.0,0.00080356]
[1644054483909,0.38222499,41448.0,41447.0,0.00080356]
[1644054484308,0.62778819,41448.0,41447.0,0.00080356]
[1644054484506,0.62778819,41448.0,41442.0,0.0001952]
[1644054484706,0.04999999,41443.0,41441.0,0.02]
[1644054485108,0.332225,41442.0,41441.0,0.02]
[1644054485711,0.34579926,41442.0,41441.0,0.02]
[1644054486608,0.65451353,41442.0,41441.0,0.02]
[1644054486908,0.04999999,41444.0,41441.0,0.02]
[1644054487108,0.332225,41443.0,41441.0,0.02]
[1644054487856,0.08208835,41442.0,41441.0,0.02]
[1644054488055,0.332225,41442.0,41441.0,0.02]
[1644054489556,0.38222499,41442.0,41441.0,0.02]
[1644054489755,0.46143275,41442.0,41441.0,0.02]
[1644054492405,0.720563,41442.0,41441.0,0.02]
[1644054494508,0.46143275,41442.0,41441.0,0.02]
[1644054494706,0.72640458,41442.0,41441.0,0.02]
[1644054494908,0.72589418,41442.0,41441.0,0.02]
[1644054495155,0.46092235,41442.0,41441.0,0.02]
[1644054496357,0.7230548,41442.0,41441.0,0.02]
[1644054499006,0.46092235,41442.0,41441.0,0.02]
[1644054501005,0.38171459,41442.0,41441.0,0.02]
[1644054502206,0.64056286,41442.0,41441.0,0.02]
[1644054502408,0.70807816,41442.0,41441.0,0.02]
[1644054502653,0.72691735,41442.0,41441.0,0.02]
[1644054512665,0.88677522,41441.0,41436.0,0.052]
[1644054512865,0.39255623,41440.0,41438.0,0.00019523]
[1644054513064,0.332372,41438.0,41436.0,0.052]
[1644054514904,0.23677522,41441.0,41436.0,0.052]
[1644054515105,0.06912945,41442.0,41437.0,0.2738372]
[1644054515304,0.27113387,41441.0,41436.0,0.052]
[1644054515504,0.04999999,41438.0,41436.0,0.052]
[1644054516103,0.20177538,41440.0,41436.0,0.052]
[1644054516306,0.04999999,41441.0,41436.0,0.052]
[1644054516504,0.01912946,41442.0,41436.0,0.052]
[1644054516704,0.04999999,41439.0,41436.0,0.052]
[1644054517308,0.08266191,41437.0,41436.0,0.052]
[1644054518567,0.41503391,41437.0,41436.0,0.052]
[1644054518964,0.68444708,41437.0,41436.0,0.052]
[1644054519168,0.35207508,41437.0,41436.0,0.052]
[1644054519367,0.08266191,41437.0,41436.0,0.052]
[1644054519768,0.6817681,41437.0,41436.0,0.052]
[1644054523605,0.7300681,41437.0,41436.0,0.052]
[1644054525458,0.7300681,41437.0,41429.0,0.05]
[1644054525459,0.75,41435.0,41429.0,0.05]
[1644054525658,0.04999999,41432.0,41428.0,0.002]
[1644054525858,1.442727,41434.0,41428.0,0.002]
[1644054525859,0.38237199,41429.0,41428.0,0.002]
[1644054526459,0.65118857,41429.0,41428.0,0.002]
[1644054527760,0.97001287,41429.0,41428.0,0.002]
[1644054528811,0.38237199,41429.0,41428.0,0.002]
[1644054529207,0.3888037,41429.0,41428.0,0.002]
[1644054529609,0.0564317,41429.0,41428.0,0.002]
[1644054530311,0.3888037,41429.0,41428.0,0.002]
[1644054531209,0.00643171,41429.0,41428.0,0.002]
[1644054532212,0.33880371,41429.0,41428.0,0.002]
[1644054532413,0.3888037,41429.0,41428.0,0.002]
[1644054538411,0.0564317,41429.0,41428.0,0.002]
[1644054540058,0.01935652,41433.0,41428.0,0.002]
[1644054540259,0.01935652,41433.0,41429.0,0.332372]
[1644054540562,0.01935652,41433.0,41429.0,0.33256521]
[1644054540857,0.01935652,41433.0,41432.0,0.27028366]
[1644054541259,0.01935652,41433.0,41429.0,0.00099619]
[1644054541458,0.04999999,41435.0,41429.0,0.00080298]
[1644054541661,0.04999999,41435.0,41429.0,0.00099619]
[1644054542359,0.04999999,41435.0,41429.0,0.23199469]
[1644054542559,0.04999999,41435.0,41430.0,0.00080297]
[1644054542760,0.04999999,41435.0,41430.0,0.00099618]
[1644054543261,0.07841966,41438.0,41432.0,0.0476]
[1644054543262,0.00239999,41433.0,41432.0,0.0476]
[1644054544514,0.00239999,41433.0,41431.0,0.00019321]
[1644054544714,0.00239999,41433.0,41430.0,0.00019321]
[1644054544915,0.00239999,41433.0,41430.0,0.00080246]
[1644054545115,0.00239999,41433.0,41430.0,0.00099567]
[1644054545921,0.00239999,41433.0,41429.0,0.27741014]
[1644054546118,0.00239999,41430.0,41429.0,0.04840247]
[1644054547117,0.00239999,41430.0,41429.0,0.0476]
[1644054547319,0.00239999,41430.0,41429.0,0.25034297]
[1644054548757,0.00239999,41430.0,41429.0,0.0476]
[1644054549758,0.00239999,41430.0,41428.0,0.002]
[1644054551513,0.26764998,41431.0,41391.0,0.13264033]
[1644054551514,0.75,41428.0,41391.0,0.13264033]
[1644054551715,0.75,41428.0,41386.0,0.12070788]
[1644054551716,0.65946642,41392.0,41386.0,0.12070788]
[1644054551921,0.65946642,41392.0,41374.0,0.10064562]
[1644054551922,0.8947,41391.0,41390.0,0.00019297]
[1644054552110,0.8947,41391.0,41362.0,0.13926]
[1644054552111,0.56209,41390.0,41362.0,0.13926]
[1644054552314,0.56209,41390.0,41364.0,0.4142092]
[1644054552315,0.04970703,41383.0,41364.0,0.4142092]
[1644054552513,0.00778974,41384.0,41362.0,0.0397028]
[1644054552514,0.14941406,41365.0,41362.0,0.0397028]
[1644054552715,0.14941406,41365.0,41345.0,2.67603035]
[1644054552716,0.75,41362.0,41345.0,2.67603035]
[1644054552916,0.060494,41358.0,41346.0,0.045]
[1644054553111,0.05,41350.0,41349.0,3.74e-06]
[1644054553314,0.332372,41350.0,41349.0,3.74e-06]
[1644054553514,0.332372,41350.0,41333.0,0.2941905]
[1644054553515,0.75,41348.0,41333.0,0.2941905]
[1644054553707,0.15,41342.0,41334.0,0.1250883]
[1644054553908,0.06048908,41343.0,41334.0,0.1250883]
[1644054554110,0.060487,41342.0,41335.0,0.02866461]
[1644054554314,0.15,41338.0,41335.0,0.02866461]
[1644054554511,0.00794632,41342.0,41335.0,0.02866461]
[1644054554707,0.06948402,41343.0,41341.0,0.00029296]
[1644054554909,0.3,41347.0,41341.0,0.00029296]
[1644054554910,0.0067223,41346.0,41341.0,0.00029296]
[1644054555168,0.0067223,41346.0,41344.0,0.00029296]
[1644054555169,0.02615103,41346.0,41344.0,0.00029296]
[1644054555368,0.07585806,41346.0,41344.0,0.00029296]
[1644054555572,0.07585806,41346.0,41345.0,0.00029296]
[1644054555573,0.40158517,41346.0,41345.0,0.00029296]
[1644054555768,0.35187814,41346.0,41345.0,0.00029296]
[1644054555970,0.01950614,41346.0,41345.0,0.00029296]
[1644054556275,0.01950614,41346.0,41345.0,0.33266496]
[1644054556469,0.01950614,41346.0,41345.0,0.632372]
[1644054556672,0.01950614,41346.0,41345.0,0.73266496]
[1644054556871,0.01950614,41346.0,41345.0,0.43266496]
[1644054557270,0.02163955,41351.0,41346.0,0.75]
[1644054557474,0.00883954,41357.0,41346.0,0.75]
[1644054557475,0.00619241,41357.0,41353.0,0.0674497]
[1644054557672,0.04970703,41373.0,41361.0,0.06952222]
[1644054557871,0.1388,41373.0,41372.0,0.00029296]
[1644054558077,0.09253,41377.0,41372.0,0.00029296]
[1644054558276,0.13747824,41390.0,41362.0,0.3]
[1644054558277,0.23756137,41385.0,41381.0,0.25387845]
[1644054558472,0.001,41388.0,41384.0,0.00029296]
[1644054558673,0.001,41388.0,41381.0,0.25387845]
[1644054558674,0.001,41388.0,41387.0,0.33266496]
[1644054559119,0.001,41388.0,41387.0,0.19588705]
[1644054559320,0.332478,41387.0,41385.0,0.00048143]
[1644054559518,0.53108503,41386.0,41385.0,0.00048143]
[1644054559917,0.38218503,41386.0,41385.0,0.00048143]
[1644054560318,0.332478,41385.0,41380.0,0.25622156]
[1644054560519,0.04970703,41386.0,41380.0,0.25622156]
[1644054560520,0.18934946,41386.0,41384.0,0.00029296]
[1644054560821,0.04970703,41385.0,41383.0,0.00048146]
[1644054561018,0.332478,41384.0,41383.0,0.00048146]
[1644054561423,0.432478,41384.0,41383.0,0.00077442]
[1644054561617,0.432478,41384.0,41383.0,0.00029296]
[1644054561819,0.70805142,41384.0,41383.0,0.00029296]
[1644054562018,0.70805142,41384.0,41378.0,0.26616423]
[1644054562019,0.4,41383.0,41378.0,0.26616423]
[1644054562219,0.4,41383.0,41375.0,0.0031983]
[1644054562419,0.44999999,41383.0,41375.0,0.0031983]
[1644054562663,0.44999999,41383.0,41373.0,0.21047656]
[1644054562664,0.4,41383.0,41373.0,0.21047656]
[1644054562964,0.4,41383.0,41371.0,0.31048024]
[1644054563171,0.4,41383.0,41345.0,0.12450614]
[1644054563172,0.28028292,41377.0,41369.0,0.02385]
[1644054563368,0.04999999,41370.0,41369.0,0.02385]
[1644054563566,0.04999999,41370.0,41362.0,0.02131196]
[1644054563567,0.38247799,41370.0,41362.0,0.02131196]
[1644054563765,0.04999999,41365.0,41362.0,0.02131196]
[1644054564069,0.332478,41364.0,41362.0,0.02131196]
[1644054564264,0.04999999,41365.0,41363.0,0.19755514]
[1644054566163,0.04999999,41365.0,41364.0,0.247288]
[1644054566411,0.04999999,41365.0,41364.0,0.340178]
[1644054566616,0.04999999,41365.0,41364.0,0.09282]
[1644054566813,0.04999999,41365.0,41363.0,0.19755514]
[1644054568010,0.04999999,41365.0,41363.0,0.1977475]
[1644054568414,0.04999999,41368.0,41363.0,0.1977475]
[1644054569113,0.04999999,41364.0,41363.0,0.00079966]
[1644054569319,0.38247799,41364.0,41363.0,0.00079966]
[1644054569515,0.38247799,41364.0,41359.0,0.00019236]
[1644054569516,0.8,41363.0,41359.0,0.00019236]
[1644054569712,0.04999999,41360.0,41358.0,0.00329236]
[1644054569914,0.76564231,41359.0,41358.0,0.00329236]
[1644054570165,0.61678234,41359.0,41358.0,0.0031]
[1644054570366,0.71678234,41359.0,41358.0,0.0031]
[1644054570764,0.91564231,41359.0,41358.0,0.0031]
[1644054570970,0.96564231,41359.0,41358.0,0.0031]
[1644054571365,0.91564231,41359.0,41358.0,0.0031]
[1644054571565,0.89911124,41359.0,41358.0,0.0031]
[1644054571765,0.89911124,41359.0,41350.0,0.0478]
[1644054571766,0.75,41358.0,41350.0,0.0478]
[1644054571972,0.04999999,41351.0,41341.0,0.05]
[1644054572168,0.04999999,41342.0,41340.0,2.38e-06]
[1644054572370,0.19885996,41342.0,41340.0,2.38e-06]
[1644054572568,0.19885996,41342.0,41335.0,0.02066699]
[1644054572766,0.04999999,41336.0,41335.0,0.02066699]
[1644054573269,0.04999999,41347.0,41335.0,0.56815699]
[1644054573666,0.1,41348.0,41335.0,0.56815699]
[1644054573667,0.04999999,41344.0,41339.0,0.00079742]
[1644054573909,0.04999999,41341.0,41339.0,0.00079742]
[1644054574313,0.19885996,41341.0,41339.0,0.00079742]
[1644054574711,0.19885996,41341.0,41335.0,0.02066699]
[1644054574911,0.36234897,41341.0,41338.0,0.00079744]
[1644054575111,0.04999999,41339.0,41338.0,0.00079744]
[1644054575313,0.43247799,41339.0,41338.0,0.00079744]
[1644054575711,0.53247799,41339.0,41338.0,0.00079744]
[1644054575912,0.53239131,41339.0,41333.0,0.10108504]
[1644054576114,0.19991331,41339.0,41336.0,0.00079746]
[1644054576312,0.09885997,41337.0,41336.0,0.00079746]
[1644054576512,0.04999999,41339.0,41336.0,0.00079746]
[1644054576715,0.04999999,41342.0,41337.0,0.247489]
[1644054576914,0.04999999,41347.0,41337.0,0.247489]
[1644054577117,0.04999999,41347.0,41334.0,0.20819399]
[1644054577313,0.2679187,41346.0,41334.0,0.20819399]
[1644054577577,0.0185802,41349.0,41341.0,0.23696318]
[1644054577773,0.0185802,41349.0,41348.0,0.22656712]
[1644054578169,0.03568,41353.0,41349.0,0.247398]
[1644054578670,0.03568,41353.0,41350.0,0.29474298]
[1644054578869,0.03568,41353.0,41351.0,0.33358389]
[1644054579072,0.03568,41353.0,41352.0,0.38761034]
[1644054579270,0.03568,41353.0,41352.0,0.63498734]
[1644054579970,0.03568,41353.0,41352.0,0.58042467]
[1644054580270,0.03568,41353.0,41352.0,0.56542467]
[1644054580471,0.03568,41353.0,41352.0,0.280677]
[1644054580771,0.33315517,41360.0,41353.0,0.1607077]
[1644054580971,0.04999999,41354.0,41353.0,0.1607077]
[1644054581172,0.19885997,41360.0,41355.0,0.24913569]
[1644054581414,0.1593149,41361.0,41356.0,0.04999999]
[1644054581610,0.19885997,41361.0,41358.0,0.04999999]
[1644054581810,0.1,41361.0,41358.0,0.0757093]
[1644054582009,0.07187512,41366.0,41358.0,0.04999999]
[1644054582210,0.17187512,41366.0,41362.0,0.18953772]
[1644054582416,0.1219618,41366.0,41358.0,0.04999999]